fUST/lending_fUST_20241231
["ID","MTS","AMOUNT","RATE_DAILY","PERIOD"]
[347251894,1735636256178,-156.925873,0.00019503,2]
[347251895,1735636256187,-214.4016801,0.00019562,2]
[347251896,1735636256196,-419.1190774,0.00019562,2]
[347251897,1735636256205,-214.3278492,0.00019562,2]
[347251898,1735636256215,-154.8644528,0.00019562,2]
[347251899,1735636256223,-153.0,0.00019562,2]
[347251900,1735636256233,-153.0,0.00019562,2]
[347251901,1735636256242,-4822.27358473,0.000196,2]
[347251902,1735636256251,-151.0,0.000196,2]
[347251903,1735636256260,-521.74628295,0.00019676,2]
[347251904,1735636256269,-160.0,0.00019698,4]
[347251905,1735636256280,-151.0,0.000197,2]
[347251906,1735636256290,-1000.0,0.00019721,2]
[347251907,1735636256299,-1001.74049703,0.00019721,2]
[347251908,1735636256308,-500.0,0.00019726,3]
[347251909,1735636256318,-151.0,0.00019726,2]
[347251910,1735636256327,-500.0,0.00019726,3]
[347251911,1735636256337,-505.21582161,0.00019726,3]
[347251912,1735636256347,-2564.658685,0.00019726,2]
[347251913,1735636256356,-500.0,0.00019726,3]
[347251914,1735636256365,-508.239692,0.00019726,2]
[347251915,1735636256375,-508.239692,0.00019726,2]
[347251916,1735636256384,-500.0,0.00019726,3]
[347251917,1735636256394,-196.83185099,0.00019726,3]
[347251918,1735636256403,-461.77996512,0.00019726,3]
[347251919,1735636256412,-500.0,0.00019726,3]
[347251920,1735636256421,-309.834158,0.00019726,2]
[347251921,1735636256431,-309.834163,0.00019726,2]
[347251922,1735636256440,-151.0,0.00019726,2]
[347251923,1735636256449,-500.0,0.00019726,3]
[347251924,1735636256459,-500.0,0.00019726,3]
[347251925,1735636256468,-500.0,0.00019726,3]
[347251926,1735636256477,-500.0,0.00019726,3]
[347251927,1735636256487,-500.0,0.00019726,3]
[347251928,1735636256496,-151.0,0.00019726,2]
[347251929,1735636256506,-583.89830634,0.00019726,3]
[347251930,1735636256515,-500.0,0.00019726,3]
[347251931,1735636256525,-500.0,0.00019726,3]
[347251932,1735636256535,-500.0,0.00019726,3]
[347251933,1735636256545,-500.0,0.00019726,3]
[347251934,1735636256554,-500.0,0.00019726,3]
[347251935,1735636256563,-191.62828534,0.00019726,3]
[347251936,1735636256573,-500.0,0.00019726,3]
[347251937,1735636256582,-500.0,0.00019726,3]
[347251938,1735636256591,-500.0,0.00019726,3]
[347251939,1735636256600,-722.349301,0.00019726,2]
[347251940,1735636256610,-500.0,0.00019726,3]
[347251941,1735636256619,-722.349308,0.00019726,2]
[347251942,1735636256628,-500.0,0.00019726,2]
[347251943,1735636256705,-500.0,0.00019726,3]
[347251944,1735636256715,-524.034608,0.00019726,2]
[347251945,1735636256725,-524.034608,0.00019726,2]
[347251946,1735636256734,-500.0,0.00019726,3]
[347251947,1735636256744,-625.73496841,0.00019726,3]
[347251948,1735636256754,-500.0,0.00019726,3]
[347251949,1735636256765,-500.0,0.00019726,3]
[347251950,1735636256775,-472.84891834,0.00019726,3]
[347251951,1735636256785,-359.13643398,0.00019726,3]
[347251952,1735636256795,-500.0,0.00019726,3]
[347251953,1735636256805,-500.0,0.00019726,2]
[347251954,1735636256815,-502.62472225,0.00019726,3]
[347251955,1735636256825,-500.0,0.00019726,3]
[347251956,1735636256834,-500.0,0.00019726,3]
[347251957,1735636256845,-2890.759803,0.00019726,2]
[347251958,1735636256855,-500.0,0.00019726,3]
[347251959,1735636256865,-500.0,0.00019726,3]
[347251960,1735636256874,-500.0,0.00019726,3]
[347251961,1735636256883,-502.56541807,0.00019726,3]
[347251962,1735636256893,-500.0,0.00019726,3]
[347251963,1735636256903,-151.0,0.00019726,2]
[347251964,1735636256912,-2890.759803,0.00019726,2]
[347251965,1735636256921,-410.88594948,0.00019726,3]
[347251966,1735636256930,-500.0,0.00019726,3]
[347251967,1735636256940,-500.0,0.00019726,3]
[347251968,1735636256950,-500.0,0.00019726,3]
[347251969,1735636256959,-500.0,0.00019726,3]
[347251970,1735636256969,-500.0,0.00019726,3]
[347251971,1735636256978,-500.0,0.00019726,3]
[347251972,1735636256988,-500.0,0.00019726,3]
[347251973,1735636256997,-151.0,0.00019726,2]
[347251974,1735636257008,-501.75152974,0.00019726,3]
[347251975,1735636257017,-500.0,0.00019726,3]
[347251976,1735636257027,-234.803927,0.00019726,2]
[347251977,1735636257036,-500.0,0.00019726,3]
[347251978,1735636257046,-234.803918,0.00019726,2]
[347251979,1735636257056,-500.0,0.00019726,3]
[347251980,1735636257065,-500.0,0.00019726,3]
[347251981,1735636257074,-500.0,0.00019726,3]
[347251982,1735636257084,-500.0,0.00019726,3]
[347251983,1735636257093,-500.0,0.00019726,3]
[347251984,1735636257103,-500.0,0.00019726,3]
[347251985,1735636257112,-151.0,0.00019726,2]
[347251986,1735636257121,-495.0,0.00019726,3]
[347251987,1735636257130,-500.0,0.00019726,3]
[347251988,1735636257139,-282.50571018,0.00019726,3]
[347251989,1735636257148,-521.37,0.00019726,3]
[347251990,1735636257157,-500.0,0.00019726,3]
[347251991,1735636257166,-500.0,0.00019726,3]
[347251992,1735636257176,-500.0,0.00019726,3]
[347251993,1735636257186,-500.0,0.00019726,3]
[347251994,1735636257195,-500.0,0.00019726,3]
[347251995,1735636257204,-500.0,0.00019726,3]
[347251996,1735636257213,-500.0,0.00019726,3]
[347251997,1735636257222,-500.0,0.00019726,3]
[347251998,1735636257230,-585.68,0.00019726,3]
[347251999,1735636257240,-500.0,0.00019726,3]
[347252000,1735636257249,-500.0,0.00019726,3]
[347252001,1735636257258,-500.0,0.00019726,3]
[347252002,1735636257267,-151.0,0.00019726,2]
[347252003,1735636257277,-500.0,0.00019726,3]
[347252004,1735636257286,-500.0,0.00019726,3]
[347252005,1735636257296,-323.388439,0.00019726,2]
[347252006,1735636257305,-323.388433,0.00019726,2]
[347252007,1735636257314,-500.0,0.00019726,3]
[347252008,1735636257323,-500.0,0.00019726,3]
[347252009,1735636257332,-523.84,0.00019726,2]
[347252010,1735636257341,-500.0,0.00019726,3]
[347252011,1735636257351,-500.0,0.00019726,3]
[347252012,1735636257361,-500.0,0.00019726,3]
[347252013,1735636257370,-603.98,0.00019726,3]
[347252014,1735636257380,-500.0,0.00019726,3]
[347252015,1735636257389,-308.451743,0.00019726,2]
[347252016,1735636257398,-500.0,0.00019726,3]
[347252017,1735636257407,-503.25059664,0.00019726,3]
[347252018,1735636257417,-308.451751,0.00019726,2]
[347252020,1735636257427,-284.59,0.00019726,3]
[347252021,1735636257437,-500.0,0.00019726,3]
[347252023,1735636257446,-500.0,0.00019726,3]
[347252024,1735636257455,-233.02777607,0.00019726,3]
[347252025,1735636257463,-849.27,0.00019726,3]
[347252026,1735636257472,-500.0,0.00019726,3]
[347252027,1735636257482,-500.0,0.00019726,3]
[347252028,1735636257492,-5220.56,0.00019726,3]
[347252029,1735636257501,-500.0,0.00019726,3]
[347252030,1735636257511,-500.0,0.00019726,3]
[347252031,1735636257521,-500.0,0.00019726,3]
[347252032,1735636257534,-602.85,0.00019726,3]
[347252033,1735636257543,-500.0,0.00019726,3]
[347252034,1735636257553,-500.0,0.00019726,3]
[347252035,1735636257562,-500.0,0.00019726,3]
[347252036,1735636257572,-500.0,0.00019726,3]
[347252037,1735636257582,-500.0,0.00019726,3]
[347252038,1735636257591,-500.0,0.00019726,3]
[347252039,1735636257600,-500.0,0.00019726,3]
[347252040,1735636257610,-500.0,0.00019726,3]
[347252041,1735636257619,-28755.77,0.00019726,3]
[347252042,1735636257629,-500.0,0.00019726,3]
[347252043,1735636257638,-500.0,0.00019726,3]
[347252044,1735636257648,-500.0,0.00019726,3]
[347252045,1735636257657,-510.63349129,0.00019726,3]
[347252046,1735636257666,-500.0,0.00019726,3]
[347252047,1735636257675,-500.0,0.00019726,3]
[347252048,1735636257685,-500.0,0.00019726,3]
[347252049,1735636257694,-542.03,0.00019726,3]
[347252050,1735636257704,-500.0,0.00019726,3]
[347252051,1735636257714,-500.0,0.00019726,3]
[347252052,1735636257723,-500.0,0.00019726,3]
[347252053,1735636257733,-500.0,0.00019726,3]
[347252054,1735636257742,-500.0,0.00019726,3]
[347252055,1735636257752,-500.0,0.00019726,3]
[347252056,1735636257768,-503.58251728,0.00019726,3]
[347252057,1735636257787,-500.0,0.00019726,3]
[347252058,1735636257799,-3927.96,0.00019726,3]
[347252059,1735636257810,-500.0,0.00019726,3]
[347252060,1735636257819,-500.0,0.00019726,3]
[347252061,1735636257829,-500.0,0.00019726,3]
[347252062,1735636257838,-500.0,0.00019726,3]
[347252063,1735636257848,-3681.53,0.00019726,3]
[347252064,1735636257857,-838.31,0.00019726,3]
[347252065,1735636257867,-501.03397974,0.00019726,3]
[347252066,1735636257876,-685.86,0.00019726,3]
[347252067,1735636257885,-1145.17,0.00019726,3]
[347252068,1735636257895,-917.369644,0.00019726,2]
[347252069,1735636257904,-500.0,0.00019726,3]
[347252070,1735636257914,-500.0,0.00019726,3]
[347252071,1735636257923,-917.369649,0.00019726,2]
[347252072,1735636257933,-500.0,0.00019726,3]
[347252073,1735636257942,-505.72,0.00019726,3]
[347252074,1735636257952,-500.0,0.00019726,3]
[347252075,1735636257961,-500.0,0.00019726,3]
[347252076,1735636257971,-1152.59,0.00019726,3]
[347252077,1735636257980,-500.0,0.00019726,3]
[347252078,1735636258051,-1022.2,0.00019726,3]
[347252079,1735636258061,-501.25049761,0.00019726,3]
[347252080,1735636258070,-500.0,0.00019726,3]
[347252081,1735636258079,-500.0,0.00019726,3]
[347252082,1735636258089,-7000.42,0.00019726,3]
[347252083,1735636258098,-500.0,0.00019726,3]
[347252084,1735636258107,-500.0,0.00019726,3]
[347252085,1735636258116,-500.0,0.00019726,3]
[347252086,1735636258125,-500.0,0.00019726,3]
[347252087,1735636258134,-500.0,0.00019726,3]
[347252088,1735636258143,-204.95815888,0.00019726,3]
[347252089,1735636258382,-295.04184112,0.00019726,3]
[347252090,1735636258391,-198.82049845,0.00019726,3]
[347252091,1735636258403,-301.17950155,0.00019726,3]
[347252092,1735636258413,-500.0,0.00019726,3]
[347252093,1735636258422,-881.16,0.00019726,3]
[347252094,1735636258431,-500.0,0.00019726,3]
[347252095,1735636258441,-1352.49,0.00019726,3]
[347252096,1735636258450,-287.87820135,0.00019726,3]
[347252097,1735636258658,-352.5613876,0.000186,2]
[347252098,1735636258669,-500.0,0.00019178,2]
[347252099,1735636258678,-500.0,0.00019178,2]
[347252100,1735636258687,-500.0,0.00019452,3]
[347252101,1735636258697,-500.0,0.00019452,3]
[347252102,1735636258707,-212.12179865,0.00019726,3]
[347252103,1735636258716,-504.76471148,0.00019726,3]
[347252104,1735636258725,-500.0,0.00019726,3]
[347252105,1735636258734,-343.84521893,0.00019726,3]
[347252108,1735636290293,254.412324,0.00013973,2]
[347252119,1735637151117,-155.87684334,0.00017413,2]
[347252120,1735637151140,-139.85134267,0.00017589,2]
[347252121,1735637155092,-16.02550067,0.00017589,2]
[347252122,1735637155112,-300.0,0.00018127,2]
[347252123,1735637155132,-77.2115907,0.00018128,2]
[347252126,1735637242090,-2796.95974789,0.00017946,2]
[347252127,1735637242117,-58.69849976,0.00018127,2]
[347252128,1735637253099,-241.691707,0.00013973,2]
[347252129,1735637253122,-241.30150024,0.00018127,2]
[347252130,1735637253145,-1777.79994266,0.00018128,2]
[347252138,1735637346089,-269.55734617,0.00014114,2]
[347252139,1735637346109,-531.6449433,0.000149,2]
[347252140,1735637348093,-33.70087827,0.000149,2]
[347252141,1735637348115,-300.0,0.00018127,2]
[347252142,1735637348136,-2116.16192173,0.00018128,2]
[347252177,1735637431900,-4691.55919291,0.00018128,2]
[347252179,1735637431909,-196.74353158,0.00018128,2]
[347252180,1735637431919,-300.0,0.00018201,2]
[347252181,1735637431928,-349.6239317,0.00018201,2]
[347252183,1735637431981,-150.3760683,0.00018201,2]
[347252184,1735637431990,-24900.0,0.00018202,2]
[347252185,1735637431999,-695.455,0.0001874,2]
[347252186,1735637432008,-326.09142687,0.00018978,2]
[347252187,1735637432018,-500.0,0.00019023,4]
[347252189,1735637432027,-472.53154717,0.00019078,2]
[347252190,1735637432036,-24602.31284667,0.00019078,2]
[347252191,1735637432045,-409.92573711,0.00019173,2]
[347252192,1735637432055,-500.0,0.00019173,2]
[347252193,1735637432064,-501.17272382,0.00019173,2]
[347252194,1735637432073,-500.0,0.00019173,2]
[347252195,1735637432082,-500.0,0.00019173,2]
[347252196,1735637432091,-501.21038166,0.00019173,2]
[347252197,1735637432100,-287.29403933,0.00019173,2]
[347252198,1735637432110,-217.69633841,0.00019173,2]
[347252199,1735637432120,-161.93399991,0.00019173,2]
[347252200,1735637432129,-500.0,0.00019173,2]
[347252201,1735637432138,-366.94553457,0.00019173,2]
[347252202,1735637432147,-174.78126269,0.00019173,2]
[347252203,1735637432156,-500.0,0.00019173,2]
[347252204,1735637432165,-471.33212632,0.00019177,2]
[347252205,1735637432174,-648.7142139,0.00019177,2]
[347252206,1735637432183,-500.0,0.00019177,2]
[347252207,1735637432192,-500.0,0.00019177,2]
[347252208,1735637432201,-353.687,0.00019177,2]
[347252209,1735637432214,-500.0,0.00019177,2]
[347252210,1735637432223,-500.0,0.00019177,2]
[347252211,1735637432233,-500.0,0.00019177,2]
[347252212,1735637432244,-500.0,0.00019177,2]
[347252213,1735637432253,-500.0,0.00019177,2]
[347252214,1735637432263,-500.0,0.00019177,2]
[347252215,1735637432272,-151.0,0.00019178,2]
[347252216,1735637432281,-151.0,0.00019178,2]
[347252217,1735637432291,-151.0,0.00019178,2]
[347252218,1735637432300,-151.0,0.00019178,2]
[347252219,1735637432311,-271.24187,0.00019178,2]
[347252220,1735637432320,-500.0,0.00019178,2]
[347252221,1735637432330,-357.19214009,0.00019178,2]
[347252222,1735637432426,-500.0,0.00019178,2]
[347252223,1735637432436,-501.37863732,0.00019178,2]
[347252224,1735637432446,-500.0,0.00019178,2]
[347252225,1735637432455,-500.0,0.00019178,2]
[347252226,1735637432467,-500.0,0.00019178,2]
[347252227,1735637432477,-500.0,0.00019178,2]
[347252228,1735637432487,-500.0,0.00019178,2]
[347252229,1735637432497,-468.40045715,0.00019178,2]
[347252230,1735637432506,-500.0,0.00019178,2]
[347252231,1735637432516,-500.0,0.00019178,2]
[347252232,1735637432526,-500.0,0.00019178,2]
[347252233,1735637432535,-500.0,0.00019178,2]
[347252234,1735637432544,-500.0,0.00019178,2]
[347252235,1735637432554,-500.0,0.00019178,2]
[347252236,1735637432563,-500.0,0.00019178,2]
[347252237,1735637432573,-500.0,0.00019178,2]
[347252238,1735637432582,-504.68361709,0.00019178,2]
[347252239,1735637432591,-501.84487671,0.00019178,2]
[347252240,1735637432601,-500.0,0.00019178,2]
[347252241,1735637432610,-500.0,0.00019178,2]
[347252242,1735637432619,-500.0,0.00019178,2]
[347252243,1735637432628,-264.24638095,0.00019178,2]
[347252244,1735637432637,-500.0,0.00019178,2]
[347252245,1735637432647,-500.0,0.00019178,2]
[347252246,1735637432656,-501.19471647,0.00019178,2]
[347252247,1735637432665,-500.0,0.00019178,2]
[347252248,1735637432674,-500.0,0.00019178,2]
[347252249,1735637432683,-502.0493717,0.00019178,2]
[347252250,1735637432693,-500.0,0.00019178,2]
[347252251,1735637432702,-500.0,0.00019178,2]
[347252252,1735637432712,-500.0,0.00019178,2]
[347252253,1735637432721,-501.16797293,0.00019178,2]
[347252254,1735637432731,-500.0,0.00019178,2]
[347252255,1735637432739,-500.0,0.00019178,2]
[347252256,1735637432749,-500.0,0.00019178,2]
[347252257,1735637432758,-500.0,0.00019178,2]
[347252258,1735637432767,-500.0,0.00019178,2]
[347252259,1735637432776,-500.45594859,0.00019178,2]
[347252260,1735637432785,-500.0,0.00019178,2]
[347252261,1735637432794,-503.57872014,0.00019178,2]
[347252262,1735637432803,-500.0,0.00019178,2]
[347252263,1735637432812,-500.0,0.00019178,2]
[347252264,1735637432821,-500.0,0.00019178,2]
[347252265,1735637432831,-500.0,0.00019178,2]
[347252266,1735637432840,-500.0,0.00019178,2]
[347252267,1735637432849,-500.0,0.00019178,2]
[347252268,1735637432858,-500.0,0.00019178,2]
[347252269,1735637432868,-500.0,0.00019178,2]
[347252270,1735637432877,-500.0,0.00019178,2]
[347252271,1735637432886,-500.0,0.00019178,2]
[347252272,1735637432895,-500.0,0.00019178,2]
[347252273,1735637432904,-500.0,0.00019178,2]
[347252274,1735637432914,-500.0,0.00019178,2]
[347252275,1735637432923,-287.4,0.00019178,2]
[347252276,1735637432932,-500.0,0.00019178,2]
[347252277,1735637432941,-500.0,0.00019178,2]
[347252278,1735637432951,-500.0,0.00019178,2]
[347252279,1735637432963,-500.0,0.00019178,2]
[347252280,1735637432972,-500.0,0.00019178,2]
[347252281,1735637432981,-200.0,0.00019178,2]
[347252282,1735637432991,-500.0,0.00019178,2]
[347252283,1735637433000,-500.0,0.00019178,2]
[347252284,1735637433009,-500.0,0.00019178,2]
[347252285,1735637433019,-500.0,0.00019178,2]
[347252286,1735637433028,-503.61578631,0.00019178,2]
[347252287,1735637433038,-500.0,0.00019178,2]
[347252288,1735637433047,-500.0,0.00019178,2]
[347252289,1735637433057,-500.0,0.00019178,2]
[347252290,1735637433066,-503.02355377,0.00019178,2]
[347252291,1735637433076,-500.0,0.00019178,2]
[347252292,1735637433085,-500.0,0.00019178,2]
[347252293,1735637433094,-501.31531326,0.00019178,2]
[347252294,1735637433103,-500.0,0.00019178,2]
[347252295,1735637433113,-500.0,0.00019178,2]
[347252296,1735637433122,-500.0,0.00019178,2]
[347252297,1735637433131,-500.0,0.00019178,2]
[347252298,1735637433140,-504.68326713,0.00019178,2]
[347252299,1735637433150,-500.0,0.00019178,2]
[347252300,1735637433159,-500.0,0.00019178,2]
[347252301,1735637433168,-500.0,0.00019178,2]
[347252302,1735637433177,-500.0,0.00019178,2]
[347252303,1735637433187,-500.0,0.00019178,2]
[347252304,1735637433197,-500.0,0.00019178,2]
[347252305,1735637433207,-500.0,0.00019178,2]
[347252306,1735637433218,-500.0,0.00019178,2]
[347252307,1735637433228,-500.0,0.00019178,2]
[347252308,1735637433239,-500.0,0.00019178,2]
[347252309,1735637433249,-500.0,0.00019178,2]
[347252310,1735637433258,-500.0,0.00019178,2]
[347252311,1735637433268,-500.0,0.00019178,2]
[347252312,1735637433277,-500.0,0.00019178,2]
[347252313,1735637433286,-500.0,0.00019178,2]
[347252314,1735637433296,-500.0,0.00019178,2]
[347252315,1735637433305,-500.0,0.00019178,2]
[347252316,1735637433315,-500.0,0.00019178,2]
[347252317,1735637433324,-500.0,0.00019178,2]
[347252318,1735637433333,-500.0,0.00019178,2]
[347252319,1735637433343,-500.0,0.00019178,2]
[347252320,1735637433352,-500.0,0.00019178,2]
[347252321,1735637433361,-500.0,0.00019178,2]
[347252322,1735637433371,-503.26842663,0.00019178,2]
[347252323,1735637433380,-500.0,0.00019178,2]
[347252324,1735637433389,-500.0,0.00019178,2]
[347252325,1735637433399,-500.0,0.00019178,2]
[347252326,1735637433408,-500.0,0.00019178,2]
[347252327,1735637433418,-500.0,0.00019178,2]
[347252328,1735637433427,-556.64639908,0.00019178,2]
[347252329,1735637433436,-500.0,0.00019178,2]
[347252330,1735637433445,-500.0,0.00019178,2]
[347252331,1735637433455,-500.0,0.00019178,2]
[347252332,1735637433464,-500.0,0.00019178,2]
[347252333,1735637433473,-500.0,0.00019178,2]
[347252334,1735637433483,-500.0,0.00019178,2]
[347252335,1735637433493,-500.0,0.00019178,2]
[347252336,1735637433503,-500.0,0.00019178,2]
[347252337,1735637433513,-500.0,0.00019178,2]
[347252338,1735637433522,-500.0,0.00019178,2]
[347252339,1735637433531,-609.95457993,0.00019178,2]
[347252340,1735637433541,-500.0,0.00019178,2]
[347252341,1735637433550,-500.0,0.00019178,2]
[347252342,1735637433559,-500.0,0.00019178,2]
[347252343,1735637433568,-500.0,0.00019178,2]
[347252344,1735637433578,-500.0,0.00019178,2]
[347252345,1735637433587,-502.35094165,0.00019178,2]
[347252346,1735637433596,-500.0,0.00019178,2]
[347252347,1735637433606,-500.0,0.00019178,2]
[347252348,1735637433615,-500.0,0.00019178,2]
[347252349,1735637433624,-500.0,0.00019178,2]
[347252350,1735637433633,-500.0,0.00019178,2]
[347252351,1735637433642,-500.0,0.00019178,2]
[347252352,1735637433651,-500.0,0.00019178,2]
[347252353,1735637433661,-552.61108884,0.00019178,2]
[347252354,1735637433670,-500.0,0.00019178,2]
[347252355,1735637433680,-500.0,0.00019178,2]
[347252356,1735637433690,-500.0,0.00019178,2]
[347252357,1735637433699,-500.0,0.00019178,2]
[347252358,1735637433708,-500.0,0.00019178,2]
[347252359,1735637433718,-500.0,0.00019178,2]
[347252360,1735637433728,-500.0,0.00019178,2]
[347252361,1735637433737,-500.0,0.00019178,2]
[347252362,1735637433746,-500.0,0.00019178,2]
[347252363,1735637433756,-507.61828876,0.00019178,2]
[347252364,1735637433765,-500.0,0.00019178,2]
[347252365,1735637433774,-500.0,0.00019178,2]
[347252366,1735637433783,-500.0,0.00019178,2]
[347252367,1735637433792,-500.0,0.00019178,2]
[347252368,1735637433802,-500.0,0.00019178,2]
[347252369,1735637433812,-500.0,0.00019178,2]
[347252370,1735637433821,-500.0,0.00019178,2]
[347252371,1735637433831,-186.65639402,0.00019178,2]
[347252372,1735637433840,-500.0,0.00019178,2]
[347252373,1735637433849,-500.0,0.00019178,2]
[347252374,1735637433858,-500.0,0.00019178,2]
[347252375,1735637433867,-500.0,0.00019178,2]
[347252376,1735637433876,-500.0,0.00019178,2]
[347252377,1735637433886,-823.47,0.00019178,2]
[347252378,1735637433895,-500.0,0.00019178,2]
[347252379,1735637433905,-503.50436012,0.00019178,2]
[347252380,1735637433914,-500.0,0.00019178,2]
[347252381,1735637433923,-500.0,0.00019178,2]
[347252382,1735637433932,-204.85745819,0.00019178,2]
[347252383,1735637433941,-500.0,0.00019178,2]
[347252384,1735637433951,-475.987991,0.00019178,2]
[347252385,1735637433962,-500.0,0.00019178,2]
[347252386,1735637433971,-500.0,0.00019178,2]
[347252387,1735637433981,-500.0,0.00019178,2]
[347252388,1735637433990,-498.01263895,0.00019178,2]
[347252389,1735637434000,-354.47802569,0.00019178,2]
[347252390,1735637434009,-705.33,0.00019178,2]
[347252391,1735637434019,-507.97414191,0.00019178,2]
[347252392,1735637434028,-345.30585068,0.00019178,2]
[347252393,1735637434110,-797.74,0.00019178,2]
[347252394,1735637434120,-500.0,0.00019178,2]
[347252395,1735637434129,-500.0,0.00019178,2]
[347252396,1735637434139,-500.0,0.00019178,2]
[347252397,1735637434149,-500.0,0.00019178,2]
[347252398,1735637434158,-504.61955648,0.00019178,2]
[347252399,1735637434167,-500.0,0.00019178,2]
[347252400,1735637434176,-500.0,0.00019178,2]
[347252401,1735637434185,-500.0,0.00019178,2]
[347252402,1735637434195,-503.07424941,0.00019178,2]
[347252403,1735637434204,-500.0,0.00019178,2]
[347252404,1735637434214,-500.0,0.00019178,2]
[347252405,1735637434223,-500.0,0.00019178,2]
[347252406,1735637434233,-500.0,0.00019178,2]
[347252407,1735637434246,-500.0,0.00019178,2]
[347252408,1735637434255,-500.0,0.00019178,2]
[347252409,1735637434265,-500.0,0.00019178,2]
[347252410,1735637434274,-500.0,0.00019178,2]
[347252411,1735637434283,-839.97,0.00019178,2]
[347252412,1735637434292,-500.0,0.00019178,2]
[347252413,1735637434302,-839.97,0.00019178,2]
[347252414,1735637434311,-839.97,0.00019178,2]
[347252415,1735637434321,-500.522507,0.00019178,2]
[347252416,1735637434331,-839.97,0.00019178,2]
[347252417,1735637434340,-500.0,0.00019178,2]
[347252418,1735637434349,-839.97,0.00019178,2]
[347252419,1735637434358,-839.97,0.00019178,2]
[347252420,1735637434367,-839.97,0.00019178,2]
[347252421,1735637434377,-500.0,0.00019178,2]
[347252422,1735637434387,-839.97,0.00019178,2]
[347252423,1735637434396,-839.97,0.00019178,2]
[347252424,1735637434405,-500.0,0.00019178,2]
[347252425,1735637434414,-839.97,0.00019178,2]
[347252426,1735637434423,-301.14,0.00019178,2]
[347252427,1735637434433,-500.0,0.00019178,2]
[347252428,1735637434442,-500.0,0.00019178,2]
[347252429,1735637434451,-500.0,0.00019178,2]
[347252430,1735637434460,-537.15,0.00019178,2]
[347252431,1735637434470,-763.94,0.00019178,2]
[347252432,1735637434479,-500.0,0.00019178,2]
[347252433,1735637434488,-500.0,0.00019178,2]
[347252434,1735637434498,-3858.11,0.00019178,2]
[347252435,1735637434507,-814.71,0.00019178,2]
[347252436,1735637434516,-502.50896974,0.00019178,2]
[347252437,1735637434525,-500.0,0.00019178,2]
[347252438,1735637434535,-500.0,0.00019178,2]
[347252439,1735637434544,-794.76,0.00019178,2]
[347252440,1735637434553,-500.0,0.00019178,2]
[347252441,1735637434563,-500.0,0.00019178,2]
[347252442,1735637434572,-500.0,0.00019178,2]
[347252443,1735637434581,-500.0,0.00019178,2]
[347252444,1735637434590,-500.0,0.00019178,2]
[347252445,1735637434599,-500.0,0.00019178,2]
[347252446,1735637434609,-500.0,0.00019178,2]
[347252447,1735637434618,-500.0,0.00019178,2]
[347252448,1735637434627,-500.0,0.00019178,2]
[347252449,1735637434636,-108.63429495,0.00019178,2]
[347252451,1735637437841,-574.51361921,0.00019173,2]
[347252452,1735637437851,-29151.36570505,0.00019178,2]
[347252453,1735637437860,-81.2985102,0.00019178,2]
[347252454,1735637437872,-418.7014898,0.00019178,2]